bitfinex/quotes_SOLUSD_20240625
["timestamp","ask_amount","ask_price","bid_price","bid_amount"]
[1719330079816,0.84,139.54,139.49,0.8646533]
[1719330080035,0.5,139.54,139.49,0.8646533]
[1719330081330,0.64494208,139.55,139.49,0.8646533]
[1719330081551,6.4326,139.57,139.51,23.27]
[1719330081715,6.4326,139.57,139.52,2.36942556]
[1719330081917,0.5,139.59,139.52,22.36942556]
[1719330082445,0.5,139.6,139.52,22.36942556]
[1719330082827,0.5,139.6,139.52,20.0]
[1719330083021,1.65791905,139.59,139.49,40.5033533]
[1719330083219,1.65791905,139.59,139.5,20.0]
[1719330083647,1.65791905,139.59,139.51,0.17]
[1719330083959,6.0168,139.65,139.58,23.27]
[1719330084244,6.0168,139.7,139.59,20.9044418]
[1719330084549,2.15791905,139.69,139.59,20.9044418]
[1719330085255,0.5,139.68,139.59,20.90486333]
[1719330085544,0.5,139.68,139.6,20.17]
[1719330085716,0.5,139.68,139.6,20.0]
[1719330085914,0.5,139.68,139.61,0.91819895]
[1719330086637,2.15791905,139.69,139.61,0.91819895]
[1719330087131,2.15791905,139.69,139.6,0.91872028]
[1719330087333,2.15791905,139.69,139.61,23.27]
[1719330087557,2.15791905,139.69,139.62,0.91858867]
[1719330089355,6.0168,139.7,139.64,23.27]
[1719330089659,6.0168,139.7,139.65,21.25839133]
[1719330089820,6.0168,139.7,139.65,20.91839133]
[1719330091437,6.0168,139.7,139.65,20.91837572]
[1719330091625,6.0168,139.7,139.64,23.27]
[1719330092239,0.5,139.69,139.6,15.5788]
[1719330092442,0.5,139.69,139.61,43.27]
[1719330093153,6.0168,139.7,139.61,43.27]
[1719330093361,6.0168,139.7,139.64,23.27]
[1719330093955,0.5,139.74,139.65,20.0]
[1719330093956,6.5371,139.74,139.65,20.0]
[1719330094262,0.5,139.73,139.67,23.27]
[1719330094421,0.5,139.73,139.65,43.27]
[1719330095250,0.5,139.73,139.66,0.17]
[1719330095436,0.5,139.73,139.65,43.27]
[1719330095828,6.5371,139.74,139.68,23.27]
[1719330096057,0.5,139.74,139.68,23.27]
[1719330096262,6.2864,139.77,139.71,23.27]
[1719330096429,0.5,139.76,139.71,23.27]
[1719330096624,6.2864,139.77,139.71,23.27]
[1719330096829,6.2864,139.77,139.72,20.0]
[1719330097130,6.4522,139.8,139.74,23.27]
[1719330097323,0.5,139.79,139.74,23.27]
[1719330097951,6.4522,139.8,139.74,23.27]
[1719330098128,6.4522,139.8,139.75,20.0]
[1719330099370,6.3074,139.83,139.75,20.0]
[1719330099527,6.3074,139.83,139.77,23.27]
[1719330099728,0.5,139.82,139.78,20.0]
[1719330100061,6.3074,139.83,139.78,20.0]
[1719330104235,0.5,139.82,139.77,23.27]
[1719330105041,0.5,139.82,139.71,110.7739731]
[1719330105231,0.5,139.82,139.7,23.27]
[1719330105232,6.5472,139.8,139.7,23.27]
[1719330105541,1.30956647,139.79,139.67,39.3522]
[1719330105740,0.81496741,139.78,139.67,23.27]
[1719330106053,6.3601,139.76,139.63,16.6403]
[1719330106352,0.67,139.75,139.65,23.27]
[1719330106664,0.82031447,139.74,139.65,23.27]
[1719330106837,0.17,139.73,139.65,23.27]
[1719330107031,0.67,139.73,139.65,23.27]
[1719330107653,0.5,139.73,139.65,23.27]
[1719330107851,0.82031447,139.74,139.66,0.17]
[1719330107852,1.15031447,139.74,139.66,0.17]
[1719330108044,0.5,139.74,139.66,0.34]
[1719330108837,0.5,139.75,139.66,0.34]
[1719330109229,0.5,139.75,139.65,0.34]
[1719330110664,0.34,139.74,139.64,20.0]
[1719330110959,0.98435301,139.74,139.64,20.0]
[1719330116454,0.5,139.73,139.64,20.0]
[1719330116763,6.5765,139.71,139.61,20.0]
[1719330116963,0.67,139.7,139.61,20.0]
[1719330117258,0.5,139.7,139.6,15.769]
[1719330117771,0.5,139.7,139.61,1.43173284]
[1719330118073,0.17,139.69,139.61,1.43173284]
[1719330118444,0.17,139.69,139.61,21.43173284]
[1719330118966,2.10173284,139.69,139.61,18.93173284]
[1719330120371,2.10173284,139.69,139.62,0.62912785]
[1719330120669,2.10173284,139.69,139.6,0.62912785]
[1719330120979,0.17,139.68,139.6,0.62912785]
[1719330121273,0.17,139.68,139.57,20.62989956]
[1719330121454,0.17,139.68,139.58,0.17]
[1719330121656,0.17,139.68,139.57,20.0]
[1719330122053,8.35513284,139.67,139.57,20.0]
[1719330122256,8.35513284,139.67,139.55,20.0]
[1719330122257,0.17,139.66,139.55,20.0]
[1719330122458,0.34,139.66,139.55,20.0]
[1719330122774,0.99472324,139.66,139.55,20.0]
[1719330122947,101.93173284,139.65,139.55,20.0]
[1719330123152,2.27173284,139.64,139.55,20.0]
[1719330123369,2.27173284,139.64,139.53,20.0]
[1719330123565,6.0848,139.62,139.51,27.14]
[1719330123879,2.10173284,139.61,139.49,0.8646533]
[1719330124050,1.93173284,139.6,139.49,0.8646533]
[1719330124254,0.34,139.59,139.49,0.8646533]
[1719330124553,1.93173284,139.58,139.49,0.8646533]
[1719330125454,0.34,139.59,139.49,20.8646533]
[1719330126183,6.0848,139.62,139.49,20.8646533]
[1719330126478,2.10173284,139.61,139.49,20.8646533]
[1719330127072,0.17,139.6,139.49,20.8646533]
[1719330127253,0.17,139.6,139.5,0.34]
[1719330127452,2.10173284,139.6,139.5,0.17]
[1719330127677,0.17,139.59,139.49,20.8646533]
[1719330127976,1.93173284,139.6,139.49,20.8646533]
[1719330128279,1.93173284,139.6,139.5,0.34]
[1719330128462,1.93173284,139.61,139.5,0.34]
[1719330129579,6.0848,139.62,139.5,0.34]
[1719330129749,1.93173284,139.61,139.5,0.34]
[1719330130757,1.93173284,139.61,139.49,20.8646533]
[1719330131065,7.78981081,139.6,139.49,20.8646533]
[1719330131385,1.93173284,139.59,139.49,20.8646533]
[1719330131967,1.93173284,139.59,139.49,0.8646533]
[1719330132167,0.17,139.58,139.49,0.8646533]
[1719330132480,6.4156,139.58,139.49,0.8646533]
[1719330132682,1.93173284,139.57,139.49,0.8646533]
[1719330132871,0.17,139.56,139.49,0.8646533]
[1719330133183,0.34,139.56,139.49,0.8646533]
[1719330133374,0.17,139.57,139.49,0.8646533]
[1719330133575,0.34,139.57,139.49,0.8646533]
[1719330133982,1.00521425,139.57,139.49,0.8646533]
[1719330134282,6.3485,139.56,139.49,0.8646533]
[1719330134576,102.10173284,139.55,139.49,0.8646533]
[1719330134874,1.93173284,139.54,139.49,0.8646533]
[1719330135070,0.17,139.53,139.49,0.8646533]
[1719330135254,8.26443284,139.52,139.49,0.8646533]
[1719330135450,2.10173284,139.51,139.49,0.8646533]
[1719330135651,0.17,139.5,139.49,0.8646533]
[1719330136384,1.93173284,139.51,139.49,0.8646533]
[1719330140260,1.93173284,139.54,139.49,0.8646533]
[1719330141567,0.66521425,139.57,139.49,0.8646533]
[1719330141879,1.93173284,139.58,139.5,0.34]
[1719330143286,1.93173284,139.61,139.5,1.04655175]
[1719330143676,1.93173284,139.61,139.5,28.18655175]
[1719330143865,1.93173284,139.61,139.51,20.0]
[1719330144066,1.93173284,139.61,139.52,1.04645046]
[1719330144362,1.93173284,139.61,139.52,0.70645046]
[1719330144574,1.93173284,139.6,139.52,0.70645046]
[1719330144784,1.93173284,139.6,139.49,0.8646533]
[1719330144785,1.93173284,139.6,139.49,1.57110376]
[1719330145189,0.34,139.59,139.49,1.57110376]
[1719330146673,2.59263932,139.6,139.49,1.57110376]
[1719330146883,2.59263932,139.6,139.5,0.34]
[1719330147890,0.17,139.59,139.49,1.57110376]
[1719330148190,0.34,139.59,139.49,1.57110376]
[1719330150400,2.59263932,139.6,139.5,0.34]
[1719330152299,2.59263932,139.6,139.5,0.17]
[1719330152476,0.17,139.59,139.49,1.57110376]
[1719330152678,0.34,139.59,139.49,1.57110376]
[1719330153873,100.34,139.59,139.49,1.57110376]
[1719330154080,2.59263932,139.58,139.49,1.57110375]
[1719330154310,2.10173284,139.57,139.49,0.8646533]
[1719330154602,0.17,139.56,139.49,0.8646533]
[1719330155104,0.17,139.57,139.49,0.8646533]
[1719330155604,0.34,139.57,139.49,0.8646533]
[1719330155804,100.0,139.55,139.49,0.8646533]
[1719330155977,100.0,139.55,139.37,27.14]
[1719330155978,100.0,139.45,139.31,133.19263777]
[1719330156178,100.0,139.43,139.25,15.7893]
[1719330156474,100.0,139.39,139.25,15.7893]
[1719330156692,22.94273652,139.38,139.25,15.7893]
[1719330156893,0.67609038,139.37,139.25,15.7893]
[1719330157074,2.10173284,139.36,139.25,15.7893]
[1719330157289,23.94387619,139.36,139.25,15.7893]
[1719330157594,50.49092146,139.36,139.25,15.7893]
[1719330157978,71.83278142,139.36,139.24,6.3113]
[1719330158174,71.83278142,139.36,139.2,6.3113]
[1719330160700,71.83278142,139.36,139.21,3.77289939]
[1719330161023,79.00838142,139.36,139.21,3.77289939]
[1719330161408,124.00838142,139.36,139.21,3.77289939]
[1719330161588,171.83278142,139.36,139.21,3.77289939]
[1719330161783,179.00838142,139.36,139.21,3.77289939]
[1719330162095,171.83278142,139.36,139.21,3.77289939]
[1719330162911,179.00838142,139.36,139.21,3.77289939]
[1719330163107,224.00838142,139.36,139.21,3.77289939]
[1719330164699,231.50739835,139.36,139.21,3.77289939]
[1719330166095,186.50739835,139.36,139.21,3.77289939]
[1719330166697,78.99179835,139.36,139.21,3.77289939]
[1719330167315,58.99179835,139.36,139.21,3.77289939]
[1719330167500,137.64993839,139.36,139.21,20.8646533]
[1719330167712,44.82553839,139.36,139.21,0.8646533]
[1719330168394,37.64993839,139.36,139.21,0.8646533]
[1719330168589,37.81993839,139.36,139.21,0.8646533]
[1719330168808,57.81993839,139.36,139.21,0.8646533]
[1719330169011,65.16553839,139.36,139.21,0.8646533]
[1719330169321,75.57155953,139.36,139.21,0.8646533]
[1719330169520,68.39595953,139.36,139.21,0.8646533]
[1719330169825,75.57155953,139.36,139.21,0.8646533]
[1719330170319,175.57155953,139.36,139.21,0.8646533]
[1719330171057,220.57155953,139.36,139.21,0.8646533]
[1719330172027,247.71155953,139.36,139.21,0.8646533]
[1719330173718,227.71149555,139.36,139.21,0.8646533]
[1719330174021,247.71155953,139.36,139.21,0.8646533]
[1719330174209,202.71155953,139.36,139.21,0.8646533]
[1719330174597,247.71155953,139.36,139.21,0.8646533]
[1719330174843,202.71155953,139.36,139.21,0.8646533]
[1719330175235,195.19595953,139.36,139.21,0.8646533]
[1719330175456,202.37155953,139.36,139.21,0.8646533]
[1719330176855,202.71155953,139.36,139.21,0.8646533]
[1719330178435,195.53595953,139.36,139.21,0.8646533]
[1719330178634,202.71155953,139.36,139.21,0.8646533]
[1719330178856,182.71155953,139.36,139.21,0.8646533]
[1719330179059,207.71149555,139.36,139.21,0.8646533]
[1719330181333,252.71149555,139.36,139.21,0.8646533]
[1719330181833,252.71149555,139.36,139.21,3.01901617]
[1719330183352,175.53595953,139.36,139.27,15.5072]
[1719330183659,155.57155953,139.36,139.27,21.7154]
[1719330185475,200.57155953,139.36,139.27,21.7154]
[1719330185766,7.1793,139.29,139.23,21.7154]
[1719330185952,1.93173284,139.28,139.23,21.7154]
[1719330186136,0.17,139.27,139.23,21.7154]
[1719330187337,19.88551626,139.27,139.21,0.8646533]
[1719330187542,1.93173284,139.26,139.21,0.8646533]
[1719330188348,0.34,139.25,139.21,0.8646533]
[1719330188762,0.17,139.25,139.21,0.8646533]
[1719330189564,0.34,139.25,139.21,0.8646533]
[1719330189761,0.17,139.25,139.21,0.8646533]
[1719330190653,1.93173284,139.26,139.21,0.8646533]
[1719330190839,12.53521626,139.27,139.21,0.8646533]
[1719330190840,1.93173284,139.27,139.21,0.8646533]
[1719330191347,1.93173284,139.29,139.21,0.8646533]
[1719330192038,16.64105063,139.29,139.21,0.8646533]
[1719330192653,0.68112633,139.28,139.21,0.8646533]
[1719330193061,0.34,139.27,139.21,0.8646533]
[1719330193452,0.68611205,139.26,139.21,0.8646533]
[1719330193859,2.61784489,139.26,139.21,0.8646533]
[1719330194340,0.68611205,139.26,139.21,0.8646533]
[1719330194746,1.93173284,139.29,139.21,0.8646533]
[1719330195967,27.04707177,139.29,139.21,0.8646533]
[1719330196269,15.56542984,139.28,139.21,0.8646533]
[1719330196450,2.78784489,139.27,139.21,0.8646533]
[1719330196650,2.78784489,139.26,139.21,0.8646533]
[1719330196965,2.61784489,139.26,139.21,0.8646533]
[1719330198945,1.93173284,139.27,139.22,15.5072]
[1719330201572,1.93173284,139.28,139.23,6.2082]
[1719330201960,9.42086087,139.31,139.23,6.2082]
[1719330202159,24.13017866,139.31,139.23,6.2082]
[1719330202350,34.5361998,139.31,139.23,6.2082]
[1719330202953,0.34,139.3,139.23,6.2082]
[1719330204067,2.27173284,139.3,139.23,6.2082]
[1719330204273,16.98105063,139.3,139.23,6.2082]
[1719330207191,16.81105063,139.3,139.23,6.2082]
[1719330207968,125.11533893,139.29,139.23,6.2082]
[1719330208174,2.10173284,139.28,139.23,6.2082]
[1719330208350,27.21707177,139.28,139.23,6.2082]
[1719330208552,14.87931779,139.27,139.23,6.2082]
[1719330208749,2.10173284,139.26,139.23,6.2082]
[1719330211169,1.93173284,139.26,139.23,6.2082]
[1719330214466,1.93173284,139.28,139.24,0.65297124]
[1719330214772,1.93173284,139.28,139.23,6.86117123]
[1719330214965,9.41810563,139.31,139.24,0.65292433]
[1719330215688,1.93173284,139.31,139.26,6.0879]
[1719330215855,16.64105063,139.32,139.28,15.9956]
[1719330216061,1.93173284,139.32,139.29,0.65268994]
[1719330216279,1.93173284,139.36,139.29,0.65268994]
[1719330217564,14.70931779,139.35,139.29,0.65268994]
[1719330217893,1.93173284,139.34,139.29,0.65268994]
[1719330219070,10.40602114,139.36,139.3,6.1011]
[1719330219265,1.93173284,139.37,139.31,15.71579623]
[1719330220281,1.93173284,139.39,139.32,0.17]
[1719330220488,1.93173284,139.39,139.32,0.65250255]
[1719330220996,1.93173284,139.39,139.33,22.9156]
[1719330221165,1.93173284,139.39,139.34,0.65240889]
[1719330222072,1.93173284,139.39,139.33,22.9156]
[1719330223296,10.40602114,139.38,139.33,22.9156]
[1719330223488,1.93173284,139.37,139.33,22.9156]
[1719330224788,1.93173284,139.41,139.33,22.9156]
[1719330224962,0.34,139.4,139.33,22.9156]
[1719330225498,0.17,139.41,139.33,22.9156]
[1719330225798,0.34,139.41,139.33,22.9156]
[1719330226184,25.45851034,139.41,139.33,22.9156]
[1719330226570,23.1867775,139.4,139.33,22.9156]
[1719330226768,2.10173284,139.39,139.33,22.9156]
[1719330227003,0.17,139.38,139.33,22.9156]
[1719330227183,1.93173284,139.37,139.33,22.9156]
[1719330228191,0.17,139.38,139.33,22.9156]
[1719330228366,0.17,139.39,139.33,22.9156]
[1719330228570,23.1867775,139.4,139.33,22.9156]
[1719330228764,7.48967597,139.42,139.33,22.9156]
[1719330228971,10.40602114,139.43,139.33,22.9156]
[1719330229277,1.93173284,139.42,139.33,22.9156]
[1719330229981,1.93173284,139.42,139.34,20.17]
[1719330230299,1.93173284,139.42,139.35,16.4914]
[1719330230709,1.93173284,139.42,139.36,6.5935]
[1719330230996,7.48968088,139.46,139.37,16.6614]
[1719330231205,7.48968088,139.46,139.38,1.93259628]
[1719330231704,10.40602114,139.47,139.39,6.5935]
[1719330231886,23.1867775,139.47,139.4,1.93628464]
[1719330232091,23.1867775,139.47,139.39,8.52978464]
[1719330232400,12.78075636,139.46,139.39,8.52978464]
[1719330232775,12.78075636,139.46,139.39,6.5935]
[1719330232970,0.17,139.45,139.39,6.5935]
[1719330233172,23.1867775,139.46,139.39,6.5935]
[1719330233473,23.1867775,139.46,139.4,1.93600683]
[1719330233683,0.17,139.45,139.39,6.5935]
[1719330234274,23.1867775,139.46,139.4,1.93584069]
[1719330236721,23.1867775,139.46,139.39,6.5935]
[1719330237179,0.17,139.45,139.39,6.5935]
[1719330238507,12.78075636,139.44,139.39,6.5935]
[1719330238682,0.34,139.43,139.39,6.5935]
[1719330238871,0.17,139.43,139.39,6.5935]
[1719330239083,23.1867775,139.44,139.39,6.5935]
[1719330239784,0.17,139.43,139.39,6.5935]
[1719330241103,13.12075636,139.43,139.39,6.5935]
[1719330241511,12.95075636,139.43,139.39,6.5935]
[1719330242111,12.78075636,139.43,139.39,6.5935]
[1719330242284,7.49261485,139.44,139.4,1.93492852]
[1719330242500,12.78075636,139.48,139.41,16.2258]
[1719330242699,7.48957714,139.5,139.42,1.93465095]
[1719330242896,20.2703335,139.5,139.42,1.93465095]
[1719330243114,20.2703335,139.5,139.41,16.2258]
[1719330243415,130.3558775,139.49,139.41,16.2258]
[1719330243819,107.1708,139.46,139.41,16.2258]
[1719330244000,107.1708,139.46,139.39,6.5935]
[1719330244001,14.72019577,139.45,139.39,6.5935]
[1719330244197,23.1867775,139.45,139.39,6.5935]
[1719330244706,100.34,139.44,139.39,6.5935]
[1719330245019,104.65417463,139.44,139.38,16.2133]
[1719330245522,108.96834926,139.44,139.38,16.2133]
[1719330246606,8.96834926,139.44,139.38,16.2133]
[1719330246800,108.96834926,139.44,139.38,16.2133]
[1719330247003,8.96834926,139.44,139.38,16.2133]
[1719330247600,8.96834926,139.44,139.39,1.93415765]
[1719330247601,8.62834926,139.44,139.39,1.93415765]
[1719330249207,46.5767775,139.48,139.39,1.93415765]
[1719330249411,23.1867775,139.48,139.39,1.93415765]
[1719330250531,23.1867775,139.48,139.4,6.5121]
[1719330250708,0.34,139.47,139.4,6.5121]
[1719330251342,12.78075636,139.46,139.4,6.5121]
[1719330251518,0.17,139.45,139.4,6.5121]
[1719330251842,13.12075636,139.45,139.4,6.5121]
[1719330252613,23.5267775,139.45,139.4,6.5121]
[1719330253134,30.84528313,139.45,139.4,6.5121]
[1719330253438,12.95075636,139.45,139.4,6.5121]
[1719330257215,0.17,139.44,139.4,6.5121]
[1719330257415,12.95075636,139.44,139.4,6.5121]
[1719330257642,0.17,139.43,139.4,6.5121]
[1719330257815,0.17,139.43,139.38,16.2133]
[1719330258015,12.95075636,139.43,139.38,16.2133]
[1719330258337,0.17,139.42,139.38,16.2133]
[1719330259331,0.17,139.43,139.38,16.2133]
[1719330261738,20.0,139.46,139.38,16.2133]
[1719330262033,0.34,139.45,139.38,16.2133]
[1719330263320,13.12075636,139.45,139.38,16.2133]
[1719330263520,20.0,139.44,139.38,16.2133]
[1719330263735,32.78075636,139.44,139.38,16.2133]
[1719330266446,0.17,139.43,139.38,16.2133]
[1719330266652,0.34,139.43,139.38,16.2133]
[1719330267028,32.78075636,139.44,139.38,16.2133]
[1719330270825,12.78075636,139.44,139.38,16.2133]
[1719330271449,10.57602114,139.43,139.38,16.2133]
[1719330271617,12.95075636,139.42,139.38,16.2133]
[1719330272055,23.3567775,139.42,139.38,16.2133]
[1719330272837,110.57602114,139.41,139.36,6.6399]
[1719330273037,4.31417463,139.4,139.35,15.1643]
[1719330273220,34.13602114,139.39,139.35,15.1643]
[1719330273425,38.45019577,139.39,139.35,15.1643]
[1719330273623,46.9167775,139.39,139.33,6.282]
[1719330274552,7.48687766,139.38,139.33,6.282]
[1719330274720,0.17,139.37,139.33,6.282]
[1719330274917,0.34,139.37,139.31,15.4701]
[1719330275320,7.48687766,139.38,139.31,15.4701]
[1719330275547,23.1867775,139.39,139.31,15.4701]
[1719330275846,30.67276918,139.39,139.31,15.4701]
[1719330276189,0.17,139.38,139.31,15.4701]
[1719330276653,30.66388061,139.39,139.31,15.4701]
[1719330276835,20.25785947,139.39,139.31,15.4701]
[1719330277036,12.78075636,139.39,139.31,15.4701]
[1719330278928,0.17,139.38,139.31,15.4701]
[1719330279153,15.06019577,139.38,139.31,15.4701]
[1719330279342,12.78075636,139.37,139.31,15.4701]
[1719330279652,0.34,139.36,139.31,15.4701]
[1719330280439,4.65417463,139.36,139.28,16.3027]
[1719330280641,12.78075636,139.35,139.28,16.3027]
[1719330280854,0.17,139.34,139.28,16.3027]
[1719330281032,0.34,139.34,139.28,16.3027]
[1719330281646,23.73,139.34,139.28,16.3027]
[1719330281859,46.9167775,139.34,139.28,16.3027]
[1719330282062,46.9167775,139.34,139.25,23.0201]
[1719330282240,123.1867775,139.33,139.25,23.0201]
[1719330282441,0.17,139.32,139.25,16.4861]
[1719330282738,0.34,139.32,139.25,16.4861]
[1719330284058,23.1867775,139.33,139.25,16.4861]
[1719330284835,123.1867775,139.38,139.26,6.5471]
[1719330285044,14.73584039,139.37,139.26,6.5471]
[1719330285345,16.63111553,139.41,139.26,6.5471]
[1719330285346,100.0,139.67,139.44,23.1231]
[1719330285555,100.8646533,139.7,139.59,23.39]
[1719330286189,12.7232656,139.7,139.59,23.39]
[1719330286340,111.8586123,139.69,139.57,23.39]
[1719330286864,111.8586123,139.69,139.58,46.74233072]
[1719330287042,11.8586123,139.69,139.6,23.39]
[1719330287240,11.8586123,139.69,139.61,45.0]
[1719330287675,5.10827,139.7,139.61,45.0]
[1719330289974,100.0,139.69,139.54,28.691008]
[1719330290175,5.10827,139.7,139.56,30.0]
[1719330290394,5.10827,139.7,139.57,45.0]
[1719330291170,5.10827,139.7,139.58,30.0]
[1719330291400,5.10827,139.7,139.59,45.0]
[1719330291873,0.34,139.69,139.59,45.0]
[1719330292514,100.0,139.65,139.58,30.0]
[1719330292674,0.34,139.64,139.58,30.0]
[1719330293582,0.17,139.64,139.58,30.0]
[1719330293784,0.17,139.64,139.59,45.0]
[1719330293994,105.10827,139.7,139.59,45.0]
[1719330294196,0.34,139.69,139.59,45.0]
[1719330294797,100.0,139.68,139.59,45.0]
[1719330295010,0.17,139.67,139.6,30.0]
[1719330295305,100.0,139.66,139.6,30.0]
[1719330295474,0.17,139.65,139.6,30.0]
[1719330295673,0.17,139.66,139.6,30.0]
[1719330295868,0.17,139.67,139.6,30.0]
[1719330296085,0.34,139.67,139.6,30.0]
[1719330296489,0.34,139.67,139.56,30.0]
[1719330297096,0.34,139.67,139.57,45.0]
[1719330297484,0.34,139.67,139.58,30.0]
[1719330297806,0.34,139.67,139.55,27.17]
[1719330297807,0.34,139.67,139.59,45.0]
[1719330298489,0.17,139.67,139.59,72.17]
[1719330298802,105.10827,139.7,139.59,72.17]
[1719330300183,0.34,139.69,139.59,72.17]
[1719330300808,5.10827,139.7,139.59,72.17]
[1719330301280,5.10827,139.7,139.61,30.0]
[1719330301487,5.10827,139.7,139.62,45.0]
[1719330301688,5.10827,139.7,139.63,27.17]
[1719330301907,5.10827,139.7,139.64,45.0]
[1719330302412,5.10827,139.7,139.67,27.17]
[1719330302583,5.10827,139.7,139.68,45.0]
[1719330303300,100.0,139.82,139.68,61.6296]
[1719330303503,100.0,139.8,139.68,91.6296]
[1719330304382,100.0,139.78,139.68,91.6296]
[1719330305182,100.0,139.76,139.68,75.0]
[1719330305378,100.0,139.74,139.63,43.687]
[1719330305609,0.34,139.73,139.63,43.687]
[1719330306296,0.17,139.74,139.63,43.687]
[1719330306499,0.34,139.74,139.63,43.687]
[1719330307205,100.0,139.73,139.63,43.687]
[1719330307507,0.17,139.72,139.63,43.687]
[1719330307710,0.34,139.72,139.63,43.687]
[1719330308412,0.34,139.72,139.63,16.517]
[1719330308786,0.34,139.72,139.64,45.0]
[1719330309109,0.34,139.72,139.63,16.517]
[1719330309313,0.34,139.72,139.6,6.2439]
[1719330310309,100.0,139.71,139.61,45.0]
[1719330310608,100.0,139.68,139.58,43.6907]
[1719330310790,0.17,139.67,139.58,43.6907]
[1719330310996,0.34,139.67,139.58,43.6907]
[1719330311814,0.34,139.67,139.59,45.0]
[1719330313005,24.99993602,139.73,139.59,45.0]
[1719330313006,100.0,139.73,139.59,45.0]
[1719330313207,6.4046,139.75,139.59,45.0]
[1719330313208,100.0,139.71,139.59,45.0]
[1719330314196,0.17,139.7,139.59,45.0]
[1719330314398,0.34,139.7,139.59,45.0]
[1719330316092,100.0,139.69,139.59,45.0]
[1719330316293,0.17,139.68,139.59,45.0]
[1719330316595,0.34,139.68,139.59,45.0]
[1719330318009,0.34,139.68,139.6,0.6292411]
[1719330318404,100.0,139.74,139.6,0.6292411]
[1719330319394,100.0,139.72,139.6,0.6292411]
[1719330319726,0.17,139.71,139.6,0.6292411]
[1719330319897,0.17,139.7,139.6,0.6292411]
[1719330320201,0.34,139.71,139.6,0.6292411]
[1719330320393,100.0,139.69,139.58,43.6907]
[1719330320711,0.34,139.68,139.58,43.6907]
[1719330320886,0.17,139.67,139.58,43.6907]
[1719330321609,0.34,139.68,139.58,43.6907]
[1719330321815,0.34,139.68,139.59,45.0]
[1719330322018,0.17,139.69,139.59,45.0]
[1719330322202,0.34,139.69,139.59,45.0]
[1719330322989,100.0,139.68,139.59,45.0]
[1719330323308,100.0,139.66,139.58,43.6907]
[1719330323496,0.17,139.65,139.58,43.6907]
[1719330323700,0.34,139.65,139.58,43.6907]
[1719330324196,0.34,139.65,139.56,6.6598]
[1719330324430,100.0,139.64,139.56,6.6598]
[1719330324718,0.34,139.63,139.56,6.6598]
[1719330324902,0.34,139.63,139.54,17.53087054]
[1719330325098,0.34,139.63,139.54,15.8731]
[1719330325594,100.0,139.62,139.54,15.8731]
[1719330325795,0.17,139.61,139.54,15.8731]
[1719330326019,0.34,139.61,139.52,6.094]
[1719330326320,100.0,139.6,139.52,6.094]
[1719330326627,0.34,139.59,139.52,6.094]
[1719330326818,0.34,139.59,139.51,27.17]
[1719330326819,100.0,139.58,139.51,27.17]
[1719330327027,0.17,139.57,139.51,27.17]
[1719330327226,0.34,139.57,139.51,27.17]
[1719330328744,100.0,139.62,139.51,27.17]
[1719330328916,100.0,139.62,139.52,45.0]
[1719330329123,100.0,139.6,139.52,45.0]
[1719330329798,0.17,139.59,139.51,27.17]
[1719330329999,0.34,139.59,139.51,27.17]
[1719330330697,0.34,139.59,139.48,6.6547]
[1719330330698,100.0,139.58,139.48,6.6547]
[1719330330895,0.17,139.57,139.48,6.6547]
[1719330331196,0.34,139.57,139.48,6.6547]
[1719330331408,100.0,139.54,139.44,49.5052]
[1719330331616,0.34,139.53,139.44,49.5052]
[1719330333302,100.0,139.52,139.44,27.17]